Cogmind - Beta 11 X8 @@@ ROGUE MODE // 2021.10.21 @ 22:21:15 Player: IceBox Result: Destroyed by D-53 Grenadier with Mini Grenade Launcher Performance ------------- Evolutions (0) 0 Regions Visited (2) 400 Robots Destroyed (20) 100 Value Destroyed (374) 374 Prototype IDs (0) 0 Alien Tech Used (0) 0 Bonus (0) 0 TOTAL SCORE: 874 Bonus ------- None Cogmind --------- Core Integrity 0/250 Matter 257/300 Energy 100/100 System Corruption 0% Temperature Cool (0) Movement Core (50) Location -10/Mines Parts ------- > --- POWER (1) -------- (None) > --- PROPULSION (2) --- (None) > --- UTILITY (2) ------ (None) > --- WEAPON (2) ------- (None) > --- INVENTORY (5) ---- Light Treads Wheel Structural Scanner Light Cannon Mining Laser Peak State ------------ > --- POWER ------------ Ion Engine > --- PROPULSION ------- Light Treads Wheel > --- UTILITY ---------- Medium Storage Unit Medium Armor Plating > --- WEAPON ----------- EM Shotgun EM Shotgun > --- INVENTORY -------- Light Nuclear Core Light Treads Wheel Wheel Medium Armor Plating Medium Armor Plating Assault Rifle Assault Rifle Assault Rifle Mining Laser [Rating: 11] Favorites ----------- Power Ion Engine Engine Ion Engine Propulsion Light Treads Treads Light Treads Leg Aluminum Leg Wheel Wheel Utility Medium Armor Plating Storage Large Storage Unit Protection Medium Armor Plating Weapon Assault Rifle Energy Gun EM Shotgun Ballistic Gun Assault Rifle Special Weapon Mining Laser Build | -11 -10 -10 ------- Run | Scr Mat Min Slots Evolved . | . . . Power . | . . . Propulsion . | . . . Utility . | . . . Weapon . | . . . Parts Attached 32 | 3 25 4 Power 1 | . 1 . Engine 1 | . 1 . Core . | . . . Reactor . | . . . Propulsion 11 | 2 7 2 Treads 6 | 1 4 1 Leg . | . . . Wheel 5 | 1 3 1 Hover . | . . . Flight . | . . . Utility 7 | . 7 . Device . | . . . Storage 3 | . 3 . Processor . | . . . Hackware . | . . . Protection 4 | . 4 . Artifact . | . . . Weapon 13 | 1 10 2 Energy Gun 4 | . 3 1 Energy Cannon . | . . . Ballistic Gun 7 | 1 5 1 Ballistic Cannon . | . . . Launcher . | . . . Special Weapon 2 | . 2 . Impact Weapon . | . . . Slashing Weapon . | . . . Piercing Weapon . | . . . Special Melee Weapon . | . . . Unidentified Prototypes . | . . . Parts Lost 6 | . 3 3 Power 1 | . 1 . Propulsion 1 | . . 1 Utility 2 | . 1 1 Weapon 2 | . 1 1 Highest Loss Streak 3 | . 2 3 Average Slot Usage (%) 98 | . 99 95 Engine 14 | . 14 14 Treads 13 | . 13 15 Wheel 14 | . 14 10 Storage 14 | . 14 14 Protection 13 | . 13 12 Energy Gun 1 | . . 6 Ballistic Gun 26 | . 26 20 Naked Turns 3 | . . 3 Heaviest Build 96 | 12 96 37 Greatest Support 40 | 10 40 40 Greatest Overweight (x) 9 | 1 9 3 Average Overweight (x) 2 | 1 2 2 Largest Inventory Capacity 25 | 8 25 15 Average Capacity 12 | 8 13 14 Most Carried 15 | 8 15 15 Average Carried 11 | 6 11 14 Final Capacity 15 | 8 15 5 Final Carried 15 | 8 15 5 Class Distribution -------------------- 100% | Mutant Dominant Class ---------------- Mutant | -10/Materials Mutant | -10/Mines Resources | -11 -10 -10 ----------- Run | Scr Mat Min Matter Collected 795 | 296 468 31 Remotely . | . . . Salvage Created 690 | 119 510 61 Parts 47 | 5 36 6 Haulers Intercepted 1 | . 1 . Recyclers Shooed . | . . . Parts Field Recycled . | . . . Retrieved Matter . | . . . Parts Self-Destructed . | . . . Prevented . | . . . Kills | -11 -10 -10 ------- Run | Scr Mat Min Combat Hostiles Destroyed 14 | . 10 4 Guns 13 | . 9 4 AOE 1 | . 1 . Classes Destroyed 9 | 2 6 1 Worker 1 | . 1 . Builder 1 | . 1 . Tunneler 2 | 2 . . Hauler 1 | . 1 . Recycler 1 | 1 . . Watcher 2 | . 2 . Swarmer 5 | . 3 2 Grunt 7 | . 7 . Assembled 2 | . . 2 Best Kill Streak 4 | 3 4 2 Combat Bots Only 3 | . 3 2 Max Kills in Single Turn 2 | 2 2 1 Gunslinging . | . . . Exploded 1 | . 1 . Melee . | . . . Uniques/NPCs Destroyed . | . . . Combat | -11 -10 -10 -------- Run | Scr Mat Min Damage Taken 1171 | . 619 552 Core 266 | . 42 224 Absorbed by Shields . | . . . Core Remaining (%) 100 | 100 . . Volleys Fired 74 | 11 55 8 Largest 2 | 2 2 2 Hottest 100 | 40 100 65 Shots Fired 139 | 22 101 16 Gun 136 | 22 98 16 Cannon . | . . . Launcher . | . . . Special 3 | . 3 . Kinetic 116 | 22 84 10 Thermal 3 | . 3 . Explosive . | . . . Electromagnetic 20 | . 14 6 Robot Hit Streak 13 | 4 13 5 Robot Miss Streak 5 | 3 5 5 Penetration Max . | . . . Secondary Targets 2 | . 1 1 Max Gunslinging Chain 1 | . 1 1 Shots Hit Robots 91 | 13 70 8 Core Hits 37 | 4 26 7 Critical Kills 1 | . 1 . Critical Parts Destroyed . | . . . Critical Strikes 1 | . 1 . Destroy 1 | . 1 . Melee Attacks . | . . . Impact . | . . . Slashing . | . . . Piercing . | . . . Sneak Attacks . | . . . Combat Hostiles . | . . . Follow-up Attacks . | . . . Damage Inflicted 1271 | 182 983 106 Guns 1225 | 182 937 106 Cannons . | . . . Explosions 46 | . 46 . Melee . | . . . Ramming . | . . . Kinetic 1043 | 182 781 80 Thermal 46 | . 46 . Explosive . | . . . Electromagnetic 182 | . 156 26 Impact . | . . . Slashing . | . . . Piercing . | . . . Highest Corruption . | . . . Average Corruption . | . . . Corruption Purged . | . . . Overload Shots . | . . . Overflow Damage 3 | . 3 . Projectiles . | . . . Explosions 3 | . 3 . Melee . | . . . Knockbacks . | . . . Impact . | . . . Kinetic . | . . . Secondary . | . . . Self-Inflicted Damage 34 | . 34 . Shots 1 | . 1 . Rammed . | . . . Targets Rammed . | . . . Kicked . | . . . Crushed . | . . . Highest Temperature 134 | . 134 64 Average Temperature 38 | . 41 30 Received Heat Transfer 384 | . 324 60 Siege Activations . | . . . Robots Corrupted . | . . . Combat Hostiles . | . . . Parts Fried . | . . . Impact Corruptions . | . . . Robots Melted . | . . . Combat Hostiles . | . . . Parts Melted . | . . . Heat Transferred 50 | . 50 . Parts Sabotaged . | . . . Parts Stolen . | . . . Parts Stripped . | . . . Power Chain Reactions 1 | . 1 . Missiles Intercepted . | . . . Alert | -11 -10 -10 ------- Run | Scr Mat Min Peak Influence 160 | 15 160 77 Initial 27 | . 9 27 Average 68 | 5 73 70 Maximum Alert Level . | . . . Low Security (%) 100 | 100 100 100 Level 1 . | . . . Level 2 . | . . . Level 3 . | . . . Level 4 . | . . . Level 5 . | . . . High Security . | . . . Max Security . | . . . Squads Dispatched 2 | . 2 . Investigation 1 | . 1 . Extermination . | . . . Reinforcement 1 | . 1 . Assault . | . . . Garrison . | . . . Intercept . | . . . Construction Impeded . | . . . Haulers Reinforced . | . . . Active Scanning Responses . | . . . Cargo Convoy Interrupts . | . . . Stealth | -11 -10 -10 --------- Run | Scr Mat Min Distress Signals . | . . . Communications Jammed . | . . . Distress Signals . | . . . Times Spotted 23 | . 15 8 Peak Tracking Total 4 | . 4 3 Tactical Retreats . | . . . Traps | -11 -10 -10 ------- Run | Scr Mat Min Traps Triggered 2 | . 2 . Indirectly . | . . . Trap Hack Attempts . | . . . Triggered . | . . . Disarmed . | . . . Reprogrammed . | . . . Reused . | . . . Traps Extracted . | . . . Installed . | . . . Triggered . | . . . Machines | -11 -10 -10 ---------- Run | Scr Mat Min Machines Disabled . | . . . Max in Single Turn . | . . . Machines Sabotaged . | . . . Garrisons Compromised . | . . . Overloaded Fab Kills . | . . . Hacking | -11 -10 -10 --------- Run | Scr Mat Min Machines Accessed 5 | . 5 . Terminals 5 | . 5 . Fabricators . | . . . Repair Stations . | . . . Recycling Units . | . . . Scanalyzers . | . . . Garrison Access . | . . . Total Hacks 17 | . 17 . Successful 5 | . 5 . Failed 11 | . 11 . Catastrophic 1 | . 1 . Database Lockouts 1 | . 1 . Manual 12 | . 12 . Terminals 17 | . 17 . Fabricators . | . . . Repair Stations . | . . . Recycling Units . | . . . Scanalyzers . | . . . Garrison Access . | . . . Terminal Hacks 4 | . 4 . Part Schematic 2 | . 2 . Terminal Index 1 | . 1 . Locate Traps 1 | . 1 . Fabricator Hacks . | . . . Repair Station Hacks . | . . . Recycling Unit Hacks . | . . . Scanalyzer . | . . . Garrison Access Hacks . | . . . Unauthorized Hacks 1 | . 1 . Terminals 1 | . 1 . Operators 1 | . 1 . Fabricators . | . . . Repair Stations . | . . . Recycling Units . | . . . Scanalyzers . | . . . Garrison Access . | . . . Data Cores Recovered . | . . . Used . | . . . Hacking Detections 5 | . 5 . Full Trace Events . | . . . Feedback Events . | . . . Feedback Blocked . | . . . Robot Schematics Acquired . | . . . Robots Built . | . . . Authchips . | . . . Time . | . . . Total Robot Build Rating . | . . . Part Schematics Acquired 2 | . 2 . Parts Built . | . . . Authchips . | . . . Time . | . . . Total Part Build Rating . | . . . Parts Repaired . | . . . Time . | . . . Parts Recycled . | . . . Recycled Matter . | . . . Retrieved Matter . | . . . Retrieved Components . | . . . Parts Scanalyzed . | . . . Part Schematics Acquired . | . . . Parts Damaged . | . . . Bothacking | -11 -10 -10 ------------ Run | Scr Mat Min Used RIF Installer . | . . . Robots Hacked . | . . . Non-combat . | . . . Combat . | . . . Robot Hacks Applied . | . . . Relay Couplers Released . | . . . Robots Rewired . | . . . Allies Hacked . | . . . Hacks Repelled . | . . . Allies | -11 -10 -10 -------- Run | Scr Mat Min Total Allies . | . . . Largest Group . | . . . Highest-Rated Group . | . . . Highest-Rated Ally . | . . . Total Orders . | . . . Ally Attacks . | . . . Total Damage . | . . . Kills . | . . . Allies Corrupted . | . . . Allies Melted . | . . . Intel | -11 -10 -10 ------- Run | Scr Mat Min Robot Analysis Total . | . . . Derelict Logs Recovered . | . . . Drone Launches . | . . . Drone Recoveries . | . . . Exploration | -11 -10 -10 ------------- Run | Scr Mat Min Turns Passed 1372 | 87 1196 89 Spaces Moved 825 | 46 730 49 Core 6 | . . 6 Treads 58 | . 57 1 Legs . | . . . Wheels 761 | 46 673 42 Hover . | . . . Flight . | . . . Fastest Speed 50 | 95 95 50 Average Speed 121 | 95 123 116 Slowest Speed 240 | 95 240 160 Overloaded Moves . | . . . Propulsion Burnouts . | . . . Robots Hopped . | . . . Cave-ins Triggered . | . . . Exploration Rate (%) 36 | 3 86 20 Regions Visited 2 Branch Regions 1 Pre-discovered Areas . | . . . Known Exits Taken . | . . . Unknown Exits Taken 2 | 1 1 . Scrap Searched . | . . . Spaces Dug 3 | . 3 . Terrain Destroyed 5 | . 5 . Melee . | . . . Projectile 3 | . 3 . AOE 2 | . 2 . Terrain Rammed . | . . . Walls Destroyed . | . . . Machines Disabled . | . . . Actions | -11 -10 -10 --------- Run | Scr Mat Min Total 1044 | 66 915 63 Wait 76 | 1 75 . Move 823 | 45 729 49 Hop . | . . . Pick Up 24 | 4 19 1 Fast Attach 5 | . 5 . Attach 2 | . 2 . Detach . | . . . Swap 25 | 3 18 4 Drop 15 | 2 12 1 Fire 74 | 11 55 8 Melee . | . . . Ram . | . . . Kick . | . . . Crush . | . . . Escape Stasis . | . . . Rewire . | . . . Trap . | . . . Miscellaneous . | . . . Route ------- -11/Scrapyard -10/Materials (discovered 4 exits: [*Mat x2] / [*Min x2]) -10/Mines History --------- Turn | Location | Event 6 | -11/Scrapyard | Discovered new exit (range 3) 88 | -11/Scrapyard | Entered Materials 313 | -10/Materials | Build established: Mutant 392 | -10/Materials | Discovered new exit (range 8) 467 | -10/Materials | Discovered new exit (range 14) 850 | -10/Materials | Central database locked down 966 | -10/Materials | Discovered new exit (range 11) 1133 | -10/Materials | Discovered new exit (range 15) 1284 | -10/Materials | Entered Mines 1285 | -10/Mines | Assembled infested the area 1290 | -10/Mines | Assisted by a Guerilla fighting off Assembled 1370 | -10/Mines | Released all parts (4) 1371 | -10/Mines | Core integrity fell below 50% 1373 | -10/Mines | Core integrity fell below 20% 1373 | -10/Mines | Destroyed by D-53 Grenadier with Mini Grenade Launcher Last Messages --------------- 01293_ S-10 Pest knocked back. 01295_ HV Slug penetrates S-10 Pest. 01295_ S-10 Pest destroyed. 01299_ Acquired 14 matter. 01303_ Dropped Assault Rifle. 01304_ Acquired Lgt. Assault Rifle. 01305_ Acquired 2 matter. 01308_ Acquired 13 matter. 01323_ as-09446 destroyed. 01333_ as-60116 destroyed. 01355_ R-06 Scavenger collects Bore Cannon. 01360_ as-05052 destroyed. 01364_ Lgt. Treads destroyed. 01364_ Assault Rifle destroyed. 01369_ Med. Armor Plating destroyed. 01370_ Released Wheel. 01370_ Released Lrg. Storage Unit. 01370_ Released Ion Engine. 01370_ Released Assault Rifle. 01372_ The unstable cave ceiling collapses. Map ----- +----------------------------------------------------+ | ???????????????????# %% =[ """ #???? | | ???????????????????# ## = #???? | | ?????????????????? ###### #########???? | | ?????????????????### #????# #???????????? | | ???????????????????# #????# #???????????? | | ??????????????????? #????# #???????????? | | ???????????????????# #????# #???????????? | | ???????????????????# #????# ####????????? | | ???????????????????# #????# #????????? | | ???????????????????# #????### #????????? | | ???????????????????? ???????# ##???????? | | ???????????????????###??????# ##??????? | | ?????????????????? # ?????##r ##?????? | | ?????????????????? ?#### ###???? | | ?????????????????? ## #???? | | ???????????????# #???? | | ????????????????? ####? | | ????????????????? ## | | ?????????????????? # | | ???????????????????# d ! # # | | ???????????????????# ## d ]=[ # | | ???????????????????# ## =[ !] | | ??????????? ??? ?# =!* | | ????????????# a%]% ?## *[ | | ????????????# # #? | | ????????????# @ # ###? | | ????????????# #####??? | | ????????????## % # ######??????? | | ????????????# ??#### ##???????????? | | ??????????????????????######????????????? | | ????????????????????????????????????????? | | ????????????????????????????????????????? | | ????????????????????????????????????????? | | ????????????????????????????????????????? | | ????????????????????????????????????????? | | ????????????????????????????????????????? | | ????????????????????????????????????????? | | ????????????????????????????????????????? | | ????????????????????????????????????????? | | ????????????????????????????????????????? | | ????????????????????????????????????????? | | ????????????????????????????????????????? | | ????????????????????????????????????????? | | ????????????????????????????????????????? | | ????????????????????????????????????????? | | ????????????????????????????????????????? | | ????????????????????????????????????????? | | ????????????????????????????????????????? | | ????????????????????????????????????????? | | ????????????????????????????????????????? | +----------------------------------------------------+ Best States ------------- Heat Dissipation 25 Energy Generation 10 Energy Capacity 250 Matter Stores 300 Matter Capacity 300 Sight Range 16 Terrain Scan Density 10 Armor Coverage 225 Evasion (%) 41 Recoil Reduction 2 Item Schematics ----------------- Huge Storage Unit | -10/Materials | Hacked Cargo Storage Unit | -10/Materials | Hacked Robot Schematics ------------------ None Fabricated ------------ Nothing Alien Tech Used ----------------- None Achievements -------------- None Challenges ------------ None Game ------ Seed WeightStorageBeam Manual? 0 Play Time 00:17:17 Cumulative 81.5 hours Start 2021.10.21 @ 22:05:15 End 2021.10.21 @ 22:21:15 Sessions 1 Manual Loads 0 Difficulty Rogue Special Mode None Game No. 57 Rogue 56 Adventurer 1 Explorer 0 Win Type - Total 2 Types 2/0/0/0/0/0/0/0/0 Lore% 38 Gallery% 47 Achievement% 41 Wizard Run 0 Options --------- ASCII 0 Keyboard 1 Movement Vi Keybinds 0 Fullscreen 2 Font 18/TerminusBold Map View 76x50 Tactical HUD 1 Map Filters NONE Filters NONE Steam 1 RUN: c6bacd80-d8b2-4df4-9889-3ac5bff04e30